[Event "Bangabandhu Premier Div League 2022"]
[Site "Dhaka"]
[Date "2022.12.10"]
[Round "11.1"]
[White "Shawket Bin, Osman Shaon"]
[Black "Murshed, Niaz"]
[Result "1-0"]
[ECO "E49"]
[WhiteElo "2069"]
[BlackElo "2419"]
[Annotator "TA"]
[PlyCount "115"]
[EventDate "2022.11.30"]
[EventType "team-tourn"]
[EventCountry "BAN"]
[SourceTitle "playchess.com"]
[Source "ChessBase"]
[SourceQuality "1"]
[TimeControl "40/5400+30:1800+30"]

{[%evp 21,115,11,3,-4,0,-23,18,13,76,88,72,31,52,60,62,0,0,0,0,12,19,0,22,12,42,29,76,67,214,218,229,117,170,171,220,108,106,95,76,114,137,112,132,43,64,13,26,9,0,0,80,79,171,171,169,166,150,104,200,110,106,87,421,421,421,421,421,421,421,421,421,407,628,613,875,794,825,660,833,635,529,573,837,828,802,735,735,724,793,793,766,652,1074,762,754,754]} 1. d4 {[%emt 0:01:02]} Nf6 {[%emt 0:01:19]} 2. c4 {[%emt 0:00:17]} e6 {[%emt 0:00:07]} 3. Nc3 {[%emt 0:00:09]} Bb4 {[%emt 0:00:07]} 4. f3 {[%emt 0:00:21]} d5 {[%emt 0:01:22]} 5. a3 {[%emt 0:00:44]} Bxc3+ {[%emt 0:00:14]} 6. bxc3 {[%emt 0:00:10]} O-O {[%emt 0:00:32]} 7. e3 {[%emt 0:04:47]} b6 {[%emt 0:02:31]} 8. cxd5 {[%emt 0:03:24]} exd5 {[%emt 0:00:10]} 9. Bd3 {[%emt 0:00:06]} c5 {[%emt 0:04:13]} 10. Ne2 {[%emt 0:01:40]} Ba6 {[%emt 0:02:14]} 11. O-O {[%emt 0:06:16]} Re8 {[%emt 0:05:21]} 12. Nf4 {[%emt 0:06:26] E49: Nimzo-Indian: Rubinstein: 5 Bd3 d5 6 a3 Bxc3+ 7 bxc3.} Bxd3 {[%emt 0:09:43]} 13. Qxd3 {[%emt 0:00:58] [#]} Nbd7 $146 {[%emt 0:01:34]} ({Predecessor:} 13... Nc6 14. g4 h6 15. Ra2 Rc8 16. Rg2 cxd4 17. cxd4 Nh7 18. h4 Na5 19. g5 hxg5 20. hxg5 Nxg5 {0-1 (39) Viviani,A (2268)-Shagbazyan,T (2415) Chess.com INT 2019}) 14. Ra2 {[%emt 0:01:15][%cal Ba1a2,Ba2g2,Bg2g5][%mdl 32] The position is equal.} Qc7 {[%emt 0:16:58]} (14... h6 $11) 15. g4 $1 $16 {[%emt 0:00:48]} h6 {[%emt 0:00:43]} 16. Rg2 {[%emt 0:04:30]} cxd4 {[%emt 0:06:17]} 17. cxd4 {[%emt 0:01:42]} Nf8 {[%emt 0:05:10]} 18. g5 {[%emt 0:04:49]} (18. Qb3 $14) 18... hxg5 $11 {[%emt 0:00:05]} 19. Rxg5 {[%emt 0:00:09]} Qd7 $1 {[%emt 0:03:31]} 20. Rg2 {[%emt 0:03:17][%cal Oe3e4]} Ne6 {[%emt 0:00:56]} (20... Rac8 {is interesting.} 21. Kh1 Ne6 22. Rfg1 Nxf4 23. exf4 Nh5) 21. Ne2 {[%emt 0:00:56]} (21. Kh1 {seems wilder.} Rec8 22. Ne2 Rc6 23. Qf5) 21... Nf8 {[%emt 0:08:33] Prevents e4.} 22. Ng3 {[%emt 0:05:49]} (22. e4 {is more complex.} dxe4 23. fxe4 Nxe4 24. Bb2) 22... Rac8 {[%emt 0:01:40]} 23. e4 {[%emt 0:04:31][%cal Be3e4,Be4e5][%mdl 32] Threatens to win with e5.} Ng6 {[%emt 0:06:39][%cal Oc8c1]} 24. e5 {[%emt 0:01:34]} Nh7 {[%emt 0:01:25]} (24... Qh3 $1 $14) 25. Nf5 $18 {[%emt 0:00:21]} Rc6 {[%emt 0:07:18]} 26. h4 {[%emt 0:01:38]} (26. Bd2 $18) 26... Kh8 $16 {[%emt 0:00:05]} 27. Bd2 {[%emt 0:03:37]} Rg8 {[%emt 0:04:48]} (27... Ne7 $142 28. Nd6 (28. Nxg7 Rg8 $14) 28... Rxd6 29. exd6 Nf5) 28. h5 {[%emt 0:10:24]} (28. f4 $1 $18 {and the rest is easy.}) 28... Ne7 {[%emt 0:00:04]} 29. Nh4 {[%emt 0:00:48] White is much more active. The black rooks are badly placed.} g5 {[%emt 0:06:25]} 30. hxg6 {[%emt 0:01:39]} fxg6 {[%emt 0:00:16]} 31. f4 {[%emt 0:08:53] Prevents g5.} Nf5 {[%emt 0:03:16]} 32. Nf3 {[%emt 0:02:41]} (32. Nxf5 $16 Qxf5 33. Qf3) 32... Rg7 $1 $14 {[%emt 0:00:32]} 33. Kf2 {[%emt 0:01:12]} (33. Nh2 $14) 33... Kg8 $11 {[%emt 0:00:54]} 34. Rh1 {[%emt 0:00:47]} (34. Rfg1 $5 {[%cal Rf3h2]}) 34... Rc4 {[%emt 0:01:24]} 35. Rgh2 {[%emt 0:10:43]} Rc6 {[%emt 0:00:44] [#]} (35... Qb5 $11 {keeps the balance.}) 36. Nh4 $1 $36 {[%emt 0:06:53][%mdl 2048] Black is under strong pressure.} Nxh4 {[%emt 0:00:40]} (36... Rc4 $16 {keeps fighting.}) 37. Rxh4 $18 {[%emt 0:00:02]} Qf5 {[%emt 0:00:33]} 38. Qb5 {[%emt 0:00:45][%csl LRc6,LRd5]} Qe6 {[%emt 0:00:19]} 39. Ke3 {[%emt 0:02:00]} (39. Rh6 $142) 39... Rgc7 {[%emt 0:00:37]} (39... Rc2 $16 40. Rh6 Rcc7) 40. f5 {[%emt 0:00:32]} ({White should play} 40. Rh6 $18 {[%cal Of4f5] Black must now prevent f5!} Rf7 41. R1h4 (41. f5 Rxf5 42. Ke2 Rc4 $11)) 40... gxf5 $16 {[%emt 0:00:30]} 41. Rh6 {[%emt 0:31:11] Really sharp!} f4+ $2 {[%emt 0:30:37][%mdl 8192]} (41... Qd7 $16 {is tougher.} 42. a4 (42. Rxh7 Rc3+ 43. Bxc3 Rxc3+ 44. Kd2 Qxb5 $11) 42... a6) 42. Kf2 $1 $18 {[%emt 0:00:00]} ({And not} 42. Kxf4 Qf7+ 43. Ke3 Ng5 $11) 42... Qxh6 {[%emt 0:00:00]} 43. Rxh6 {[%emt 0:00:00]} Rxh6 {[%emt 0:00:00]} 44. Qxd5+ {[%emt 0:00:00]} ({Less strong is} 44. Bxf4 Rf7 45. Qxd5 Nf8 $18) 44... Kg7 {[%emt 0:00:00]} 45. Bxf4 {[%emt 0:00:00]} Rf7 {[%emt 0:00:00] [#]} 46. Ke3 {[%emt 0:00:00]} Rh3+ {[%emt 0:00:00]} (46... Rh4 $142) 47. Ke2 {[%emt 0:00:00] White is clearly winning.} Rh4 {[%emt 0:00:00]} 48. Be3 {[%emt 0:00:00] And now e6 would win.} Rg4 {[%emt 0:00:00]} 49. Qh1 {[%emt 0:00:00] aiming for e6.} Ng5 {[%emt 0:00:00]} 50. Bxg5 {[%emt 0:00:00]} Rxg5 {[%emt 0:00:00][%mdl 4096] Endgame KQ-KRR} 51. e6 {[%emt 0:00:00]} Re7 {[%emt 0:00:00]} 52. d5 {[%emt 0:00:00]} Re8 {[%emt 0:00:00]} 53. Qa1+ {[%emt 0:00:00]} Kg6 {[%emt 0:00:00]} 54. Qd4 {[%emt 0:00:00]} Kf5 {[%emt 0:00:00]} 55. Kf3 {[%emt 0:00:00] White wants to mate with Qf4+.} Kg6 {[%emt 0:00:00]} 56. Qd3+ {[%emt 0:00:00]} Kh6 {[%emt 0:00:37]} 57. Qe4 {[%emt 0:00:00]} Kg7 {[%emt 0:02:39]} 58. d6 {[%emt 0:00:00] Weighted Error Value: White=0.37/Black=0.29 (precise)} 1-0

[Event "Bangabandhu Premier Div League 2022"]
[Site "Dhaka"]
[Date "2022.12.10"]
[Round "11.1"]
[White "abzid, Rahman"]
[Black "Rahman, Ziaur"]
[Result "1/2-1/2"]
[ECO "D53"]
[WhiteElo "2043"]
[BlackElo "2464"]
[Annotator "TA"]
[PlyCount "104"]
[EventDate "2022.12.01"]
[EventCountry "BAN"]
[SourceTitle "playchess.com"]
[Source "ChessBase"]
[SourceQuality "1"]
[TimeControl "40/5400+30:1800+30"]

{[%evp 13,104,4,20,6,40,29,28,29,29,32,27,25,35,26,29,33,78,49,77,69,42,29,15,8,14,0,14,0,0,0,0,-26,-27,-57,-24,-53,-2,-189,-154,-178,-60,-64,0,0,32,18,18,0,-3,-3,-1,-8,-8,-8,-8,-39,90,95,48,0,0,0,8,8,20,0,37,50,55,0,0,0,121,2,143,0,0,0,0,0,0,0,0,0,0,0,0,0,0,0,0,0,0]} 1. d4 {[%emt 1:31:00]} e6 {[%emt 0:02:26]} 2. c4 {[%emt 0:00:30]} Nf6 {[%emt 0:01:21]} 3. Nc3 {[%emt 0:00:00]} d5 {[%emt 0:00:34]} 4. Bg5 {[%emt 0:00:00]} Be7 {[%emt 0:00:58]} 5. e3 {[%emt 0:00:00]} h6 {[%emt 1:27:41]} 6. Bf4 {[%emt 0:00:00]} O-O {[%emt 0:00:30]} 7. Nf3 {[%emt 0:00:00]} Nbd7 {[%emt 0:00:00]} 8. h3 {[%emt 0:03:00] [#] 8.g4 gains popularity. D53: Queen's Gambit Declined: 4 Bg5 Be7: Early deviations.} Ne4 $146 {[%emt 0:01:00]} ({Predecessor:} 8... c5 9. cxd5 Nxd5 10. Nxd5 exd5 11. Be2 g5 12. Bg3 cxd4 13. Nxd4 Bb4+ 14. Kf1 Nf6 15. Qb3 Qe7 {½-½ (44) Kucera,P (2214)-Cakl,Z (2083) Liberec 2021}) 9. cxd5 {[%emt 0:00:30]} Nxc3 {[%emt 0:00:30]} 10. bxc3 {[%emt 0:00:00] White has an edge.} exd5 {[%emt 0:00:00]} 11. Bd3 {[%emt 0:00:00]} c5 {[%emt 0:00:00]} 12. O-O {[%emt 0:00:00]} c4 {[%emt 0:01:30]} 13. Bc2 {[%emt 0:00:00]} Qa5 {[%emt 0:00:00]} 14. Qd2 {[%emt 0:02:30]} b5 {[%emt 0:00:00]} 15. a3 {[%emt 0:00:30]} (15. Rfb1 {with more complications.} Nb6 16. Ne5 Re8 17. Qd1) 15... Nf6 {[%emt 0:00:00]} 16. Ne5 {[%emt 0:00:30] Threatens to win with Nc6.} Qb6 {[%emt 0:02:00] Inhibits Nc6.} 17. Rfb1 {[%emt 0:00:30]} a5 {[%emt 0:00:30]} 18. f3 {[%emt 0:00:00] White wants to play Ba4.} Qa6 {[%emt 0:00:00]} 19. e4 {[%emt 0:01:00]} (19. h4 {looks sharper.} Re8 20. g4 Nd7 21. Qh2) 19... Ra7 {[%emt 0:00:00]} 20. Ra2 {[%emt 0:00:00]} Rd8 {[%emt 0:00:00]} 21. g4 {[%emt 0:00:00]} Rb7 {[%emt 0:00:00]} 22. Kh2 {[%emt 0:01:30]} (22. Bxh6 {seems wilder.} dxe4 23. Bg5 exf3 24. Qf4) 22... Qe6 {[%emt 0:00:00]} 23. Bg3 {[%emt 0:00:00]} dxe4 {[%emt 0:03:00]} (23... h5 {is interesting.} 24. exd5 Nxd5 25. Be4 b4) 24. fxe4 {[%emt 0:00:00][%cal Bf3e4,Be4e5][%mdl 32]} (24. Bxe4 {simplifies} Nxe4 25. fxe4 Re8 26. d5) 24... Nh5 {[%emt 0:00:00]} 25. Nf3 $2 {[%emt 0:00:00]} (25. Nxf7 $1 $11 {and White has nothing to worry.} Qxf7 26. gxh5) 25... Nxg3 $19 {[%emt 0:00:00]} 26. Kxg3 {[%emt 0:00:00]} h5 {[%emt 0:01:30]} ({Black should play} 26... b4 $1 $19 {[%cal Rb4b3] White must now prevent ...b3.} 27. axb4 axb4) 27. Qf4 $15 {[%emt 0:02:30]} Rb6 {[%emt 0:00:00]} ({Black should try} 27... f6 $15 28. e5 fxe5 29. Nxe5 Rf8) 28. e5 $1 $11 {[%emt 0:00:00]} h4+ {[%emt 0:01:00]} 29. Kh2 {[%emt 0:01:00]} Bb7 {[%emt 0:00:30]} 30. Be4 {[%emt 0:00:00] Prevents Qd5.} (30. Ng5 {keeps more tension.} Bxg5 31. Qxg5 Qd5 32. Be4) 30... Bxe4 {[%emt 0:00:00]} 31. Qxe4 {[%emt 0:00:00]} f6 {[%emt 0:00:00]} 32. Nxh4 {[%emt 0:00:00]} fxe5 {[%emt 0:00:00]} 33. Nf5 {[%emt 0:00:00]} (33. Nf3 {simplifies} exd4 34. Qxe6+ Rxe6 35. Nxd4 Re3 36. Nf5) 33... Bg5 {[%emt 0:00:00] Inhibits d5.} 34. Re2 {[%emt 0:02:30] [#]} (34. Qxe5 Qxe5+ 35. dxe5 Bf4+ 36. Kg2 Bxe5 $17) (34. Rf2 {simplifies} exd4 35. Qxe6+ Rxe6 36. Nxd4 Re3 37. Rxb5 Bf6 38. g5) 34... b4 {[%emt 0:02:30]} (34... exd4 $1 $15 {keeps the upper hand.} 35. Nxd4 (35. Qxe6+ Rxe6 36. Rxe6 dxc3 $17) 35... Qxe4 36. Rxe4 Rd5) 35. axb4 $16 {[%emt 0:00:00]} (35. cxb4 $6 c3 $11) 35... axb4 {[%emt 0:00:00]} (35... g6 $16) 36. Rxb4 $40 {[%emt 0:00:26][%mdl 128] Black needs to defend precisely.} (36. dxe5 $14 {might be stronger.} b3 37. h4 (37. Nd6 Ra6 $11)) 36... Rxb4 $11 {[%emt 0:00:00]} 37. cxb4 {[%emt 0:00:17] Hoping for h4.} c3 {[%emt 0:00:00]} 38. h4 {[%emt 0:00:21]} (38. dxe5 $2 {perishes.} Rd2 39. Nd4 Qc4 40. Qa8+ Kh7 41. Qe4+ g6 42. Rxd2 cxd2 43. Qb7+ Kh6 $19) 38... Bd2 {[%emt 0:00:00]} 39. d5 {[%emt 0:00:13] Prevents g6.} Qd7 {[%emt 0:00:00]} 40. d6 {[%emt 0:00:59]} Kh8 {[%emt 0:03:00]} 41. Qd5 {[%emt 0:31:14]} (41. Qxe5 $2 {too greedy.} c2 42. Rxd2 c1=Q $19) (41. h5 $1 $14) 41... Bf4+ {[%emt 0:00:00]} 42. Kh3 $1 {[%emt 0:00:30]} Qa7 {[%emt 0:31:00] [#]} (42... g6 $1 $11 43. Ne7 Kg7) 43. Ne7 {[%emt 0:00:30] White has more active pieces.} ({White has to play} 43. Kg2 $1 $16) 43... Qg1 {[%emt 0:00:30]} (43... c2 $1 $11 {remains equal.} 44. Rxc2 Qa3+ 45. Kg2 Qg3+ 46. Kf1 Qxg4) 44. Ng6+ {[%emt 0:00:00]} (44. Qf3 $16 {Strongly threatening g5.} Qb1 45. g5 (45. Qxc3 $2 {is a self mate.} Qh1+)) 44... Kh7 {[%emt 0:00:00][%csl Gf4][%cal Rg1g3] The position is equal.} 45. Nxf4 {[%emt 0:01:00] Dancing on a razor blade.} (45. Nxe5 $2 Qg3#) 45... Qf1+ {[%emt 0:01:00]} 46. Qg2 {[%emt 0:00:00]} Qxf4 {[%emt 0:00:30]} 47. Qe4+ {[%emt 0:01:00]} Qxe4 {[%emt 0:00:30]} 48. Rxe4 {[%emt 0:00:00]} Rxd6 {[%emt 0:00:30]} 49. Rxe5 {[%emt 0:00:00]} Rd3+ {[%emt 0:00:00]} 50. Kg2 {[%emt 0:00:00]} Rd4 {[%emt 0:00:00][%csl LRb4,LRg4]} 51. Rc5 {[%emt 0:00:00]} Rxg4+ {[%emt 0:01:30]} 52. Kh3 {[%emt 0:00:00]} Rxb4 {[%emt 0:00:00] Weighted Error Value: White=0.20 (precise) /Black=0.27 (precise)} 1/2-1/2

[Event "Bangabandhu Premier Div League 2022"]
[Site "Dhaka"]
[Date "2022.12.10"]
[Round "11.2"]
[White "Pantsulaia, Levan"]
[Black "Mendonca, Leon Luke"]
[Result "1-0"]
[ECO "A13"]
[WhiteElo "2597"]
[BlackElo "2565"]
[Annotator "TA"]
[PlyCount "93"]
[EventDate "2022.11.30"]
[EventType "team-tourn"]
[EventCountry "BAN"]
[SourceTitle "playchess.com"]
[Source "ChessBase"]
[SourceQuality "1"]
[TimeControl "40/5400+30:1800+30"]

{[%evp 9,93,0,0,-18,-3,-6,-9,-12,0,0,29,-10,27,28,29,26,42,0,0,8,8,-44,0,-23,0,0,-5,-38,-23,-64,-61,-54,-52,-54,-22,-33,0,-50,-60,-68,55,75,118,120,114,65,164,18,37,19,118,103,105,121,69,-84,332,341,340,336,318,245,233,235,322,318,258,261,452,452,428,354,279,230,456,373,658,648,552,544,824,431,435,415,415,340]} 1. c4 {[%emt 0:00:30]} e6 {[%emt 0:00:12]} 2. g3 {[%emt 0:00:19]} d5 {[%emt 0:00:13]} 3. Bg2 {[%emt 0:00:06]} Nf6 {[%emt 0:00:10]} 4. Nf3 {[%emt 0:00:07]} d4 {[%emt 0:00:32]} 5. d3 {[%emt 0:00:16]} c5 {[%emt 0:01:05]} 6. e4 {[%emt 0:00:13] A13: English Opening: 1...e6.} Nc6 {[%emt 0:01:30]} 7. e5 {[%emt 0:00:09]} Nd7 {[%emt 0:05:46]} 8. Qe2 {[%emt 0:00:25] The position is equal.} Qc7 {[%emt 0:08:01][%cal Rc6e5]} 9. Bf4 {[%emt 0:00:10]} Ne7 {[%emt 0:03:57] [#]} 10. h4 $146 {[%emt 0:01:35]} ({Predecessor:} 10. Nbd2 Ng6 11. h4 Be7 12. h5 Nxf4 13. gxf4 h6 14. O-O-O Rb8 15. Rhg1 b5 16. Bh1 {1-0 (73) Iturrizaga Bonelli,E (2607)-Bluebaum,M (2670) Chess.com INT 2020}) 10... h5 {[%emt 0:09:56]} 11. Nbd2 {[%emt 0:12:49][%cal Ob2b4]} Ng6 {[%emt 0:02:14] Prevents b4.} 12. O-O {[%emt 0:03:04]} Rb8 {[%emt 0:08:56]} 13. a3 {[%emt 0:05:49]} b6 {[%emt 0:01:30]} 14. b4 {[%emt 0:00:13]} Be7 {[%emt 0:03:32]} 15. Rab1 {[%emt 0:01:43]} (15. Ne4 $11) 15... Bb7 {[%emt 0:02:19]} 16. Rfe1 {[%emt 0:02:35]} Nxf4 {[%emt 0:12:49]} (16... Ndf8 $5 {[%cal Rg6f4]}) 17. gxf4 {[%emt 0:00:09][%cal Of4f5]} Nf8 {[%emt 0:01:21][%cal Bd7f8,Bf8g6,Bg6f4,Bf4g2][%mdl 32]} 18. bxc5 {[%emt 0:11:22]} (18. Ng5 $5 {[%cal Rd2e4]}) 18... Ng6 {[%emt 0:02:33]} 19. cxb6 {[%emt 0:00:12]} (19. Nxd4 $2 Nxf4 $19) 19... axb6 {[%emt 0:00:08]} 20. Ne4 $1 {[%emt 0:08:37]} Nxf4 {[%emt 0:00:58]} (20... Nxh4 21. Nxh4 (21. Nxd4 Nxg2 22. Kxg2 Kf8 $14) 21... Bxe4 22. Qxe4 $16) 21. Qd2 {[%emt 0:00:05]} Nxg2 {[%emt 0:06:26]} (21... Ng6 $5 {[%cal Re8g8]}) 22. Kxg2 {[%emt 0:00:06]} Rh6 {[%emt 0:05:00]} (22... f5 $5 {[%cal Rf5e4]} 23. Nd6+ Bxd6 24. exd6 Qxd6 $15) 23. Qb2 {[%emt 0:01:15]} ({Better is} 23. Kf1 $11) 23... Rg6+ $15 {[%emt 0:01:47]} 24. Kf1 {[%emt 0:02:55]} Bc5 {[%emt 0:10:02]} (24... Ba8 $1 $15) 25. Nfg5 $14 {[%emt 0:07:02] Pair of Knights!} (25. Nxd4 Qd7 26. Nxc5 bxc5 $17) 25... Ke7 {[%emt 0:04:44]} 26. Nxc5 {[%emt 0:09:00] White is more active.} Qxc5 {[%emt 0:01:29]} 27. a4 {[%emt 0:12:08]} (27. Qxb6 $2 Bg2+ $1 {[%mdl 512]} 28. Kxg2 Rxb6 $19) ({White should try} 27. Qb4 $16) 27... Kd7 {[%emt 0:04:39]} (27... f6 $1 $14 28. exf6+ (28. Qxb6 $2 Bg2+ 29. Kg1 Rxb6 $19) 28... Rxf6) 28. Qd2 {[%emt 0:06:50]} (28. Qxb6 $2 Bg2+ $1 {[%mdl 512]} 29. Kxg2 Rxb6 $19) (28. Qa1 $18) 28... f6 $1 $11 {[%emt 0:01:24]} (28... Qc6 29. Qf4 Qg2+ 30. Ke2 Qg4+ 31. Qxg4 hxg4 32. Nxf7 $16) 29. exf6 {[%emt 0:03:45] Qf4 is the strong threat.} gxf6 {[%emt 0:01:11]} (29... Qf5 $1 $11 30. Rxe6 (30. Rxb6 gxf6 31. Qb4 Qxd3+ 32. Kg1 Bc6 $11) 30... Rxg5 $1 31. Re7+ Kc8 32. Re8+ (32. Qxg5 Qxd3+ 33. Re2 Qxb1+ $11) (32. hxg5 $2 Qh3+ 33. Ke2 Bf3+ 34. Ke1 Qh1#) 32... Kd7 33. Re7+ (33. Qxg5 $2 Qh3+ 34. Ke2 Rxe8+ 35. Kd2 Qf3 $19) 33... Kc8 34. Qxg5 (34. hxg5 $2 Qh3+ 35. Ke2 Bf3+ 36. Ke1 Qh1#) 34... Qxd3+ 35. Re2 Qxb1+ 36. Re1 Qd3+ 37. Kg1 Bc6 38. fxg7 Kb7) 30. Qf4 $16 {[%emt 0:01:16]} Rf8 {[%emt 0:00:34]} (30... fxg5 $2 31. Qxb8 Bf3 32. Rxb6 $18 (32. Qxb6 $2 Qxb6 33. Rxb6 gxh4 $19)) 31. Ne4 {[%emt 0:01:44] Dancing on a razor blade.} (31. Rxe6 $2 fxg5 32. Qe5 Rxe6 $19) (31. Nxe6 $2 Bg2+ 32. Ke2 Re8 $19) 31... Qc7 {[%emt 0:00:30]} 32. Qf3 {[%emt 0:04:13] [#]} (32. Qxc7+ $14 Kxc7 33. c5 bxc5 34. Nxc5 Bg2+ 35. Ke2) 32... Rg4 $2 {[%emt 0:00:28][%mdl 8192] [#] Black cannot hold the game after this.} (32... Ke7 $1 $17 {keeps the pressure on. And now ...Rfg8 would win.} 33. a5 (33. Qxh5 $2 Rfg8 $19) 33... Rg4 34. Rxb6 f5 35. Rxb7 Qxb7) 33. Nc5+ $1 $18 {[%emt 0:00:24][%mdl 512]} Qxc5 {[%emt 0:00:31]} 34. Qxb7+ {[%emt 0:00:07]} Qc7 {[%emt 0:00:20]} 35. Qxc7+ {[%emt 0:01:08]} (35. Qxb6 Qxb6 36. Rxb6 Re8 $18) 35... Kxc7 {[%emt 0:00:01]} 36. Rxe6 {[%emt 0:00:10]} Rxh4 {[%emt 0:00:44]} 37. Rbxb6 {[%emt 0:00:23][%mdl 4096] Endgame KRR-KRR} Rh1+ {[%emt 0:00:45]} 38. Ke2 {[%emt 0:00:48][%cal Oa4a5] Hoping for a5!} Ra8 {[%emt 0:00:39] Inhibits a5.} (38... Ra1 39. Rec6+ (39. Rxf6 Rxa4 40. Rbe6 Rh8 $18) 39... Kd8 40. Rxf6 Re8+ 41. Kf3 Rxa4) 39. Rec6+ {[%emt 0:00:35]} (39. Rxf6 Rxa4 40. c5 Rg1 41. Rf7+ Kc8 42. Rc6+ Kb8 43. Rf8+ Kb7 44. Rb6+ Kc7 45. Rf7+ Kc8 46. Rf8+ Kc7 47. Rf7+ $18) 39... Kd7 {[%emt 0:00:02]} 40. Rd6+ {[%emt 0:02:31]} Kc7 {[%emt 0:00:56]} 41. Ra6 {[%emt 0:04:25]} ({Don't play} 41. Rxf6 Rxa4 42. c5 Ra2+ 43. Kf3 Re1 44. Rf7+ Kc8 45. Rc6+ Kb8) 41... Rh8 $2 {[%emt 0:18:03]} (41... Ra1 {was worth a try.} 42. Rdc6+ Kb7 43. Rab6+ Ka7) 42. Rxf6 {[%emt 0:02:22]} ({Less strong is} 42. Rxd4 Ra1 43. Rf4 Re8+ 44. Kd2 Ra2+ 45. Kc3 Ra3+ 46. Kb4 Rxd3 47. Rfxf6 Rd1 48. Rf7+ Kb8 49. Rb6+ Kc8 $18) 42... h4 $2 {[%emt 0:00:39]} (42... Re8+ 43. Rae6 Rxe6+ 44. Rxe6 h4) 43. Rf7+ {[%emt 0:03:44]} Kb8 {[%emt 0:00:07]} 44. Rb6+ {[%emt 0:00:09]} Ka8 {[%emt 0:01:53]} 45. Rbb7 {[%emt 0:00:45]} Rh6 {[%emt 0:07:38]} 46. Ra7+ {[%emt 0:00:08]} Kb8 {[%emt 0:00:03]} 47. Rae7 {[%emt 0:01:53] Prevents Re6+.   Weighted Error Value: White=0.37/Black=0.50} 1-0